{"text_format":"1","workbook":"xlsx","n_sheets":8,"sheets":["Inschrijfformulier","Poules","Doorschrijf Formulier 32","Wedstrijdbriefje 1e Hoofdronde","Wedstrijdbriefje 2e Hoofdronde","Doorschrijfformulier Verliezers","Wedstrijdbriefje 1e Verliezersr","Wedstrijdbriefje 2e Verliezersr"],"not_rendered":{"charts":0,"images":4,"macros":1,"external_links":1,"defined_names":9,"comments":2,"pivot_tables":0},"unopened":[],"bounds":{"document_bytes":16777216,"sheet_cells":100000,"rows_first":2000,"rows_last":500,"rows_between":2000,"halvings":0,"cell_chars":16384,"cell_head_chars":4096},"cells_cut":0,"cells_raw":0,"read":"whole","date_system":"1900"}

{"sheet":"Inschrijfformulier","index":0,"n_rows":18,"n_cols":2,"rows_kept":18,"cut":false,"hidden":false,"merged":[]}
["Namenlijst","Random gesorteerde lijst"]
[1,8]
[2,10]
[3,1]
[4,12]
[5,11]
[6,16]
[7,5]
[8,2]
[9,14]
[10,13]
[11,7]
[12,17]
[13,9]
[14,6]
[15,4]
[16,15]
[17,3]

{"sheet":"Poules","index":1,"n_rows":147,"n_cols":30,"rows_kept":147,"cut":false,"hidden":false,"merged":[[40,10,40,12],[59,1,59,4],[66,1,66,4],[66,5,66,6],[67,1,67,4],[67,5,67,6],[0,3,0,8],[2,1,2,6],[29,1,29,4],[29,5,29,6],[30,5,30,6],[21,1,21,4],[30,1,30,4],[28,1,28,4],[28,5,28,6],[2,10,2,12],[144,1,144,4],[31,5,31,6],[31,1,31,4],[135,1,135,4],[76,3,76,8],[78,1,78,6],[78,8,78,9],[78,10,78,12],[97,1,97,4],[104,1,104,4],[104,5,104,6],[105,1,105,4],[105,5,105,6],[106,1,106,4],[106,5,106,6],[114,3,114,8],[145,1,145,4],[143,1,143,4],[143,5,143,6],[2,8,2,9],[107,1,107,4],[107,5,107,6],[38,3,38,8],[40,1,40,6],[40,8,40,9],[68,1,68,4],[68,5,68,6],[69,1,69,4],[69,5,69,6],[146,1,146,4],[146,5,146,6],[145,5,145,6],[144,5,144,6],[116,10,116,12],[116,1,116,6],[116,8,116,9]]}
[null,"Poule:",1,"Naam",null,null,null,null,null,null,"Baan:",1]
[]
[null,"Wedstrijden",null,null,null,null,null,null,"Uitslag",null,"Schrijver",null,null,null,null,{"$f":"poule($B$4:$J$9,0,1,5,8,9,4)","v":"Rang"},"Spelersnaam","Aantal","Uitslagen","Gewonnen","Legs Voor","Legs Tegen","Rang1","Aantal","Uitslagen","Gewonnen","Legs Voor","Legs Tegen","Rang2","Points"]
[1,{"$f":"IF(Inschrijfformulier!B2<>\"\",Inschrijfformulier!B2,\"\")","v":8},null,null,"-",{"$f":"IF(Inschrijfformulier!B5<>\"\",Inschrijfformulier!B5,\"\")","v":12},null,null,3,2,{"$f":"B24","v":10},null,null,null,null,"1","1","3","2:3-2|3:3-2|6:2-3","2","8","7","1","1","2:3-2","1","3","2","1","00|008|001||00|003|001||\u00021"]
[2,{"$f":"IF(Inschrijfformulier!B3<>\"\",Inschrijfformulier!B3,\"\")","v":10},null,null,"-",{"$f":"IF(Inschrijfformulier!B4<>\"\",Inschrijfformulier!B4,\"\")","v":1},null,null,2,3,{"$f":"B23","v":8},null,null,null,null,"2","10","3","2:2-3|4:3-2|5:3-2","2","8","7","1","1","2:2-3","0","2","3","2","00|008|001||00|002|000||\u000210"]
[3,{"$f":"IF(Inschrijfformulier!B4<>\"\",Inschrijfformulier!B4,\"\")","v":1},null,null,"-",{"$f":"IF(Inschrijfformulier!B2<>\"\",Inschrijfformulier!B2,\"\")","v":8},null,null,3,2,{"$f":"B26","v":12},null,null,null,null,"3","8","3","1:3-2|3:2-3|5:2-3","1","7","8","3","1","1:3-2","1","3","2","3","00|007|000||00|003|001||\u00028"]
[4,{"$f":"IF(Inschrijfformulier!B5<>\"\",Inschrijfformulier!B5,\"\")","v":12},null,null,"-",{"$f":"IF(Inschrijfformulier!B3<>\"\",Inschrijfformulier!B3,\"\")","v":10},null,null,2,3,{"$f":"B25","v":1},null,null,null,null,"4","12","3","1:2-3|4:2-3|6:3-2","1","7","8","3","1","1:2-3","0","2","3","4","00|007|000||00|002|000||\u000212"]
[5,{"$f":"IF(Inschrijfformulier!B2<>\"\",Inschrijfformulier!B2,\"\")","v":8},null,null,"-",{"$f":"IF(Inschrijfformulier!B3<>\"\",Inschrijfformulier!B3,\"\")","v":10},null,null,2,3,{"$f":"B26","v":12},null,null,null,null,null,null,null,null,"Bij een gelijke stand moet er alleen in het gele gebied gekeken worden"]
[6,{"$f":"IF(Inschrijfformulier!B4<>\"\",Inschrijfformulier!B4,\"\")","v":1},null,null,"-",{"$f":"IF(Inschrijfformulier!B5<>\"\",Inschrijfformulier!B5,\"\")","v":12},null,null,2,3,{"$f":"B23","v":8},null,null,null,null,null,null,null,null,"Als het gele gebied leeg is hoeft er in het rode gebied niets te staan omdat de uitslag dan nergens gelijk is"]
[]
[null,{"$f":"COLUMN()-1","v":1},{"$f":"COLUMN()-1","v":2},3,4,5,6,7,8,9]
[]
[null,null,null,null,null,null,null,null,null,null,null,null,null,null,null,null,"Spelrs Naam",null,null,"Beurt 1","Beurt 2","Beurt 3","Totaal"]
[null,null,null,null,null,null,null,null,null,null,null,null,null,null,null,1,{"$f":"INDEX($Q$4:$Q$7,MATCH(SMALL(($AC$4:$AC$7)+ROW($Q$4:$Q$7)/1000,ROW()-ROW($Q$14)+1),($AC$4:$AC$7)+ROW($AC$4:$AC$7)/1000,0))","v":"1"},null,null,35,87,123,{"$f":"SUM(T14:V14)","v":245},1]
[null,null,null,null,null,null,null,null,null,null,null,null,null,null,null,2,{"$f":"INDEX($Q$4:$Q$7,MATCH(SMALL(($AC$4:$AC$7)+ROW($Q$4:$Q$7)/1000,ROW()-ROW($Q$14)+1),($AC$4:$AC$7)+ROW($AC$4:$AC$7)/1000,0))","v":"10"},null,null,38,50,100,{"$f":"SUM(T15:V15)","v":188},3]
[null,null,null,null,null,null,null,null,null,null,null,null,null,null,null,3,{"$f":"INDEX($Q$4:$Q$7,MATCH(SMALL(($AC$4:$AC$7)+ROW($Q$4:$Q$7)/1000,ROW()-ROW($Q$14)+1),($AC$4:$AC$7)+ROW($AC$4:$AC$7)/1000,0))","v":"8"},null,null,25,60,125,210,2]
[]
[null,null,null,null,null,null,null,null,null,null,null,null,null,null,null,"Als je bij de eerste wedstrijd in kollom I en J de uitslag veranderd naar 2-3 dan krijg je een andere rangorde in het gele gebied"]
["Alleen de bovenste helft invullen",null,null,null,null,null,null,null,null,null,null,null,null,null,null,"En alleen bij deze rangorde had ik graag dat dan de 3 spelers die gelijk zijn geeindigt in het rode gedeelte met de naam komen te staan"]
[null,null,null,null,null,null,null,null,null,null,null,null,null,null,null,"De volgorde maakt niets uit daar ze nog 3x3 pijlen moeten gooien, en de gene met de meeste punten wint"]
[null,null,null,null,null,null,null,null,null,null,null,null,null,null,null,"Die had ik dan graag indien mogelijk in kollom Q4 t/m Q7 weggeschreven op volgorde van de behaalde punten van de zogenoemde"]
[null,"Spelersnaam",null,null,null,1,2,3,"gewon partij","Legs Voor","Legs Tegen","Saldo","180 ers",null,null,"9 darts shootout"]
[1,{"$f":"IF(Inschrijfformulier!B2<>\"\",Inschrijfformulier!B2,\"\")","v":8}]
[2,{"$f":"IF(Inschrijfformulier!B3<>\"\",Inschrijfformulier!B3,\"\")","v":10}]
[3,{"$f":"IF(Inschrijfformulier!B4<>\"\",Inschrijfformulier!B4,\"\")","v":1}]
[4,{"$f":"IF(Inschrijfformulier!B5<>\"\",Inschrijfformulier!B5,\"\")","v":12}]
[]
[]
[null,"Spelersnaam",null,null,null,"H Finish"]
[1]
[2]
[3]
[]
[]
[]
[]
[]
[]
[null,"Poule:",2,"Naam",null,null,null,null,null,null,"Baan:",1]
[]
[null,"Wedstrijden",null,null,null,null,null,null,"Uitslag",null,"Schrijver",null,null,null,null,{"$f":"poule($B$42:$J$47,0,1,5,8,9,4)","v":"Rang"},"Spelersnaam","Aantal","Uitslagen","Gewonnen","Legs Voor","Legs Tegen","Rang1","Aantal","Uitslagen","Gewonnen","Legs Voor","Legs Tegen","Rang2","Points"]
[1,{"$f":"IF(Inschrijfformulier!B6<>\"\",Inschrijfformulier!B6,\"\")","v":11},null,null,"-",{"$f":"IF(Inschrijfformulier!B9<>\"\",Inschrijfformulier!B9,\"\")","v":2},null,null,2,3,{"$f":"B62","v":16},null,null,null,null,"1","16","3","2:2-3|4:3-1|5:3-2","2","8","6","1","","","","","","","00|008|003||00|008|003||\u000216"]
[2,{"$f":"IF(Inschrijfformulier!B7<>\"\",Inschrijfformulier!B7,\"\")","v":16},null,null,"-",{"$f":"IF(Inschrijfformulier!B8<>\"\",Inschrijfformulier!B8,\"\")","v":5},null,null,2,3,{"$f":"B61","v":11},null,null,null,null,"2","5","3","2:3-2|3:3-2|6:2-3","2","8","7","2","","","","","","","00|008|002||00|008|002||\u00025"]
[3,{"$f":"IF(Inschrijfformulier!B8<>\"\",Inschrijfformulier!B8,\"\")","v":5},null,null,"-",{"$f":"IF(Inschrijfformulier!B6<>\"\",Inschrijfformulier!B6,\"\")","v":11},null,null,3,2,{"$f":"B64","v":2},null,null,null,null,"3","2","3","1:3-2|4:1-3|6:3-2","2","7","7","3","","","","","","","00|007|002||00|007|002||\u00022"]
[4,{"$f":"IF(Inschrijfformulier!B9<>\"\",Inschrijfformulier!B9,\"\")","v":2},null,null,"-",{"$f":"IF(Inschrijfformulier!B7<>\"\",Inschrijfformulier!B7,\"\")","v":16},null,null,1,3,{"$f":"B63","v":5},null,null,null,null,"4","11","3","1:2-3|3:2-3|5:2-3","0","6","9","4","","","","","","","00|006|000||00|006|000||\u000211"]
[5,{"$f":"IF(Inschrijfformulier!B6<>\"\",Inschrijfformulier!B6,\"\")","v":11},null,null,"-",{"$f":"IF(Inschrijfformulier!B7<>\"\",Inschrijfformulier!B7,\"\")","v":16},null,null,2,3,{"$f":"B64","v":2}]
[6,{"$f":"IF(Inschrijfformulier!B8<>\"\",Inschrijfformulier!B8,\"\")","v":5},null,null,"-",{"$f":"IF(Inschrijfformulier!B9<>\"\",Inschrijfformulier!B9,\"\")","v":2},null,null,2,3,{"$f":"B61","v":11}]
[]
[null,{"$f":"COLUMN()-1","v":1},{"$f":"COLUMN()-1","v":2},3,4,5,6,7,8,9]
[]
[]
[]
[]
[]
[]
[]
["Alleen de bovenste helft invullen"]
[]
[]
[null,"Spelersnaam",null,null,null,1,2,3,"gewon partij","Legs Voor","Legs Tegen","Saldo","180 ers"]
[1,{"$f":"IF(Inschrijfformulier!B6<>\"\",Inschrijfformulier!B6,\"\")","v":11}]
[2,{"$f":"IF(Inschrijfformulier!B7<>\"\",Inschrijfformulier!B7,\"\")","v":16}]
[3,{"$f":"IF(Inschrijfformulier!B8<>\"\",Inschrijfformulier!B8,\"\")","v":5}]
[4,{"$f":"IF(Inschrijfformulier!B9<>\"\",Inschrijfformulier!B9,\"\")","v":2}]
[]
[]
[null,"Spelersnaam",null,null,null,"H Finish"]
[1]
[2]
[3]
[]
[]
[]
[]
[]
[]
[null,"Poule:",3,"Naam",null,null,null,null,null,null,"Baan:",1]
[]
[null,"Wedstrijden",null,null,null,null,null,null,"Uitslag",null,"Schrijver",null,null,null,null,{"$f":"poule($B$80:$J$85,0,1,5,8,9,4)","v":"Rang"},"Spelersnaam","Aantal","Uitslagen","Gewonnen","Legs Voor","Legs Tegen","Rang1","Aantal","Uitslagen","Gewonnen","Legs Voor","Legs Tegen","Rang2","Points"]
[1,{"$f":"IF(Inschrijfformulier!B10<>\"\",Inschrijfformulier!B10,\"\")","v":14},null,null,"-",{"$f":"IF(Inschrijfformulier!B13<>\"\",Inschrijfformulier!B13,\"\")","v":17},null,null,4,3,{"$f":"B100","v":13},null,null,null,null,"1","13","3","2:2-3|4:3-1|5:3-0","2","8","4","1","","","","","","1","00|008|005||00|000|004||\u000213"]
[2,{"$f":"IF(Inschrijfformulier!B11<>\"\",Inschrijfformulier!B11,\"\")","v":13},null,null,"-",{"$f":"IF(Inschrijfformulier!B12<>\"\",Inschrijfformulier!B12,\"\")","v":7},null,null,2,3,{"$f":"B99","v":14},null,null,null,null,"2","14","3","1:4-3|3:4-3|5:0-3","2","8","9","2","1","3:4-3","1","4","3","2","00|008|000||00|004|001||\u000214"]
[3,{"$f":"IF(Inschrijfformulier!B12<>\"\",Inschrijfformulier!B12,\"\")","v":7},null,null,"-",{"$f":"IF(Inschrijfformulier!B10<>\"\",Inschrijfformulier!B10,\"\")","v":14},null,null,3,4,{"$f":"B102","v":17},null,null,null,null,"3","7","3","2:3-2|3:3-4|6:2-3","1","8","9","2","1","3:3-4","0","3","4","3","00|008|000||00|003|000||\u00027"]
[4,{"$f":"IF(Inschrijfformulier!B13<>\"\",Inschrijfformulier!B13,\"\")","v":17},null,null,"-",{"$f":"IF(Inschrijfformulier!B11<>\"\",Inschrijfformulier!B11,\"\")","v":13},null,null,1,3,{"$f":"B101","v":7},null,null,null,null,"4","17","3","1:3-4|4:1-3|6:3-2","1","7","9","4","","","","","","4","00|007|000||00|000|004||\u000217"]
[5,{"$f":"IF(Inschrijfformulier!B10<>\"\",Inschrijfformulier!B10,\"\")","v":14},null,null,"-",{"$f":"IF(Inschrijfformulier!B11<>\"\",Inschrijfformulier!B11,\"\")","v":13},null,null,0,3,{"$f":"B102","v":17}]
[6,{"$f":"IF(Inschrijfformulier!B12<>\"\",Inschrijfformulier!B12,\"\")","v":7},null,null,"-",{"$f":"IF(Inschrijfformulier!B13<>\"\",Inschrijfformulier!B13,\"\")","v":17},null,null,2,3,{"$f":"B99","v":14}]
[]
[null,{"$f":"COLUMN()-1","v":1},{"$f":"COLUMN()-1","v":2},3,4,5,6,7,8,9]
[]
[]
[]
[]
[]
[]
[]
["Alleen de bovenste helft invullen"]
[]
[]
[null,"Spelersnaam",null,null,null,1,2,3,"gewon partij","Legs Voor","Legs Tegen","Saldo","180 ers"]
[1,{"$f":"IF(Inschrijfformulier!B10<>\"\",Inschrijfformulier!B10,\"\")","v":14}]
[2,{"$f":"IF(Inschrijfformulier!B11<>\"\",Inschrijfformulier!B11,\"\")","v":13}]
[3,{"$f":"IF(Inschrijfformulier!B12<>\"\",Inschrijfformulier!B12,\"\")","v":7}]
[4,{"$f":"IF(Inschrijfformulier!B13<>\"\",Inschrijfformulier!B13,\"\")","v":17}]
[]
[]
[null,"Spelersnaam",null,null,null,"H Finish"]
[1]
[2]
[3]
[]
[]
[]
[]
[]
[]
[null,"Poule:",4,"Naam",null,null,null,null,null,null,"Baan:",1]
[]
[null,"Wedstrijden",null,null,null,null,null,null,"Uitslag",null,"Schrijver",null,null,null,null,{"$f":"poule($B$118:$J$127,0,1,5,8,9,5)","v":"Rang"},"Spelersnaam","Aantal","Uitslagen","Gewonnen","Legs Voor","Legs Tegen","Rang1","Aantal","Uitslagen","Gewonnen","Legs Voor","Legs Tegen","Rang2","Points"]
[1,{"$f":"IF(Inschrijfformulier!B14<>\"\",Inschrijfformulier!B14,\"\")","v":9},null,null,"-",{"$f":"IF(Inschrijfformulier!B18<>\"\",Inschrijfformulier!B18,\"\")","v":3},null,null,3,2,{"$f":"B139","v":4},null,null,null,null,"1","6","4","2:3-2|4:3-1|6:3-1|9:2-3","3","11","7","1","","","","","","1","00|011|004||00|000|003||\u00026"]
[2,{"$f":"IF(Inschrijfformulier!B15<>\"\",Inschrijfformulier!B15,\"\")","v":6},null,null,"-",{"$f":"IF(Inschrijfformulier!B17<>\"\",Inschrijfformulier!B17,\"\")","v":15},null,null,3,2,{"$f":"B141","v":3},null,null,null,null,"2","9","4","1:3-2|3:3-2|6:1-3|8:3-2","3","10","9","2","1","8:3-2","1","3","2","2","00|010|002||00|003|001||\u00029"]
[3,{"$f":"IF(Inschrijfformulier!B14<>\"\",Inschrijfformulier!B14,\"\")","v":9},null,null,"-",{"$f":"IF(Inschrijfformulier!B16<>\"\",Inschrijfformulier!B16,\"\")","v":4},null,null,3,2,{"$f":"B140","v":15},null,null,null,null,"3","15","4","2:2-3|5:3-1|8:2-3|10:3-2","2","10","9","2","1","8:2-3","0","2","3","3","00|010|002||00|002|000||\u000215"]
[4,{"$f":"IF(Inschrijfformulier!B18<>\"\",Inschrijfformulier!B18,\"\")","v":3},null,null,"-",{"$f":"IF(Inschrijfformulier!B15<>\"\",Inschrijfformulier!B15,\"\")","v":6},null,null,1,3,{"$f":"B137","v":9},null,null,null,null,"4","3","4","1:2-3|4:1-3|7:3-2|10:2-3","1","8","11","4","1","7:3-2","1","3","2","4","00|008|000||00|003|001||\u00023"]
[5,{"$f":"IF(Inschrijfformulier!B16<>\"\",Inschrijfformulier!B16,\"\")","v":4},null,null,"-",{"$f":"IF(Inschrijfformulier!B17<>\"\",Inschrijfformulier!B17,\"\")","v":15},null,null,1,3,{"$f":"B138","v":6},null,null,null,null,"5","4","4","3:2-3|5:1-3|7:2-3|9:3-2","1","8","11","4","1","7:2-3","0","2","3","5","00|008|000||00|002|000||\u00024"]
[6,{"$f":"IF(Inschrijfformulier!B15<>\"\",Inschrijfformulier!B15,\"\")","v":6},null,null,"-",{"$f":"IF(Inschrijfformulier!B14<>\"\",Inschrijfformulier!B14,\"\")","v":9},null,null,3,1,{"$f":"B140","v":15}]
[7,{"$f":"IF(Inschrijfformulier!B18<>\"\",Inschrijfformulier!B18,\"\")","v":3},null,null,"-",{"$f":"IF(Inschrijfformulier!B16<>\"\",Inschrijfformulier!B16,\"\")","v":4},null,null,3,2,{"$f":"B138","v":6}]
[8,{"$f":"IF(Inschrijfformulier!B17<>\"\",Inschrijfformulier!B17,\"\")","v":15},null,null,"-",{"$f":"IF(Inschrijfformulier!B14<>\"\",Inschrijfformulier!B14,\"\")","v":9},null,null,2,3,{"$f":"B141","v":3}]
[9,{"$f":"IF(Inschrijfformulier!B16<>\"\",Inschrijfformulier!B16,\"\")","v":4},null,null,"-",{"$f":"IF(Inschrijfformulier!B15<>\"\",Inschrijfformulier!B15,\"\")","v":6},null,null,3,2,{"$f":"B137","v":9}]
[10,{"$f":"IF(Inschrijfformulier!B17<>\"\",Inschrijfformulier!B17,\"\")","v":15},null,null,"-",{"$f":"IF(Inschrijfformulier!B18<>\"\",Inschrijfformulier!B18,\"\")","v":3},null,null,3,2,{"$f":"B139","v":4}]
[]
[null,{"$f":"COLUMN()-1","v":1},{"$f":"COLUMN()-1","v":2},3,4,5,6,7,8,9]
[]
[]
[]
["Alleen de bovenste helft invullen"]
[]
[]
[null,"Spelersnaam",null,null,null,1,2,3,4,"gewon partij","Legs Voor","Legs Tegen","Saldo","180 ers"]
[1,{"$f":"IF(Inschrijfformulier!B14<>\"\",Inschrijfformulier!B14,\"\")","v":9}]
[2,{"$f":"IF(Inschrijfformulier!B15<>\"\",Inschrijfformulier!B15,\"\")","v":6}]
[3,{"$f":"IF(Inschrijfformulier!B16<>\"\",Inschrijfformulier!B16,\"\")","v":4}]
[4,{"$f":"IF(Inschrijfformulier!B17<>\"\",Inschrijfformulier!B17,\"\")","v":15}]
[5,{"$f":"IF(Inschrijfformulier!B18<>\"\",Inschrijfformulier!B18,\"\")","v":3}]
[]
[]
[null,"Spelersnaam",null,null,null,"H Finish"]
[1]
[2]
[3]

{"sheet":"Doorschrijf Formulier 32","index":2,"n_rows":32,"n_cols":16,"rows_kept":32,"cut":false,"hidden":false,"merged":[[12,3,13,3],[14,3,15,3],[16,3,17,3],[1,15,1,19],[2,15,2,19],[3,15,3,19],[4,15,4,19],[0,3,1,3],[2,3,3,3],[4,3,5,3],[0,15,0,19],[30,3,31,3],[1,7,2,7],[5,7,6,7],[9,7,10,7],[13,7,14,7],[17,7,18,7],[21,7,22,7],[18,3,19,3],[20,3,21,3],[22,3,23,3],[24,3,25,3],[26,3,27,3],[28,3,29,3],[6,3,7,3],[8,3,9,3],[10,3,11,3],[30,15,31,15],[25,7,26,7],[29,7,30,7],[3,11,4,11],[11,11,12,11],[19,11,20,11],[27,11,28,11],[7,15,8,15],[23,15,24,15],[15,15,16,15]]}
[1,null,null,"?",null,null,null,null,null,"Hoofdronde",null,null,null,null,null,"Uitsla Toernooi"]
[2,null,null,null,null,null,null,"?",null,null,null,null,null,null,1,{"$f":"IF('Doorschrijf Formulier 32'!O16>O17,'Doorschrijf Formulier 32'!N16,IF('Doorschrijf Formulier 32'!O17>O16,'Doorschrijf Formulier 32'!N17,\"\"))","v":"5"}]
[3,null,null,"?",null,null,null,null,null,null,null,null,null,null,2,{"$f":"IF('Doorschrijf Formulier 32'!O16<O17,'Doorschrijf Formulier 32'!N16,IF('Doorschrijf Formulier 32'!O17<O16,'Doorschrijf Formulier 32'!N17,\"\"))","v":"14"}]
[4,null,null,null,null,null,null,null,null,{"$f":"IF(SUM(--Poules!P4,--Poules!P5)=3,Poules!Q4,\"\")","v":"1"},4,3,null,null,3,{"$f":"IF('Doorschrijf Formulier 32'!O31>O32,'Doorschrijf Formulier 32'!N31,IF('Doorschrijf Formulier 32'!O32>O31,'Doorschrijf Formulier 32'!N32,\"\"))","v":"9"}]
[5,null,null,"?",null,null,null,null,null,{"$f":"IF(SUM(--Poules!P80,--Poules!P81)=3,Poules!Q81,\"\")","v":"14"},7,null,null,null,4,{"$f":"IF('Doorschrijf Formulier 32'!O31<O32,'Doorschrijf Formulier 32'!N31,IF('Doorschrijf Formulier 32'!O32<O31,'Doorschrijf Formulier 32'!N32,\"\"))","v":"10"}]
[6,null,null,null,null,null,null,"?"]
[7,null,null,"?"]
[8,null,null,null,null,null,null,null,null,null,null,null,null,{"$f":"IF('Doorschrijf Formulier 32'!K4>K5,'Doorschrijf Formulier 32'!J4,IF('Doorschrijf Formulier 32'!K5>K4,'Doorschrijf Formulier 32'!J5,\"\"))","v":"14"},15,"?"]
[9,null,null,"?",null,null,null,null,null,null,null,null,null,{"$f":"IF('Doorschrijf Formulier 32'!K12>K13,'Doorschrijf Formulier 32'!J12,IF('Doorschrijf Formulier 32'!K13>K12,'Doorschrijf Formulier 32'!J13,\"\"))","v":"9"},9]
[10,null,null,null,null,null,null,"?"]
[11,null,null,"?"]
[12,null,null,null,null,null,null,null,null,{"$f":"IF(SUM(--Poules!P42,--Poules!P43)=3,Poules!Q42,\"\")","v":"16"},4,"?"]
[13,null,null,"?",null,null,null,null,null,{"$f":"IF(SUM(--Poules!P118,--Poules!P119)=3,Poules!Q119,\"\")","v":"9"},7]
[14,null,null,null,null,null,null,"?"]
[15,null,null,"?",null,null,null,null,null,null,null,null,null,"Finale"]
[16,null,null,null,null,null,null,null,null,null,null,null,null,{"$f":"IF('Doorschrijf Formulier 32'!O8>O9,'Doorschrijf Formulier 32'!N8,IF('Doorschrijf Formulier 32'!O9>O8,'Doorschrijf Formulier 32'!N9,\"\"))","v":"14"},15,"?"]
[17,null,null,"?",null,null,null,null,null,null,null,null,null,{"$f":"IF('Doorschrijf Formulier 32'!O24>O25,'Doorschrijf Formulier 32'!N24,IF('Doorschrijf Formulier 32'!O25>O24,'Doorschrijf Formulier 32'!N25,\"\"))","v":"5"},16]
[18,null,null,null,null,null,null,"?"]
[19,null,null,"?"]
[20,null,null,null,null,null,null,null,null,{"$f":"IF(SUM(--Poules!P80,--Poules!P81)=3,Poules!Q80,\"\")","v":"13"},5,"?"]
[21,null,null,"?",null,null,null,null,null,{"$f":"IF('Doorschrijf Formulier 32'!G22>G23,'Doorschrijf Formulier 32'!F22,IF('Doorschrijf Formulier 32'!G23>G22,'Doorschrijf Formulier 32'!F23,\"\"))","v":"5"},9]
[22,null,null,null,null,{"$f":"IF(SUM(--Poules!P118,--Poules!P120)=4,Poules!Q120,\"\")","v":"15"},4,"?"]
[23,null,null,"?",null,{"$f":"IF(SUM(--Poules!P42,--Poules!P43)=3,Poules!Q43,\"\")","v":"5"},7]
[24,null,null,null,null,null,null,null,null,null,null,null,null,{"$f":"IF('Doorschrijf Formulier 32'!K20>K21,'Doorschrijf Formulier 32'!J20,IF('Doorschrijf Formulier 32'!K21>K20,'Doorschrijf Formulier 32'!J21,\"\"))","v":"5"},15,"?"]
[25,null,null,"?",null,null,null,null,null,null,null,null,null,{"$f":"IF('Doorschrijf Formulier 32'!K28>K29,'Doorschrijf Formulier 32'!J28,IF('Doorschrijf Formulier 32'!K29>K28,'Doorschrijf Formulier 32'!J29,\"\"))","v":"10"},9]
[26,null,null,null,null,null,null,"?"]
[27,null,null,"?"]
[28,null,null,null,null,null,null,null,null,{"$f":"IF(SUM(--Poules!P118,--Poules!P119)=3,Poules!Q118,\"\")","v":"6"},3,"?"]
[29,null,null,"?",null,null,null,null,null,{"$f":"IF(SUM(--Poules!P4,--Poules!P5)=3,Poules!Q5,\"\")","v":"10"},7]
[30,null,null,null,null,null,null,"?",null,null,null,null,null,"3e en 4e Plaats"]
[31,null,null,"?",null,null,null,null,null,null,null,null,null,{"$f":"IF('Doorschrijf Formulier 32'!O8<O9,'Doorschrijf Formulier 32'!N8,IF('Doorschrijf Formulier 32'!O9<O8,'Doorschrijf Formulier 32'!N9,\"\"))","v":"9"},15,"?"]
[32,null,null,null,null,null,null,null,null,null,null,null,null,{"$f":"IF('Doorschrijf Formulier 32'!O24<O25,'Doorschrijf Formulier 32'!N24,IF('Doorschrijf Formulier 32'!O25<O24,'Doorschrijf Formulier 32'!N25,\"\"))","v":"10"},9]

{"sheet":"Wedstrijdbriefje 1e Hoofdronde","index":3,"n_rows":49,"n_cols":8,"rows_kept":49,"cut":false,"hidden":false,"merged":[]}
["1e Hooftronde",null,"501 Best of",5,null,null,"Baan:",{"$f":"'Doorschrijf Formulier 32'!P8","v":"?"}]
[]
[null,null,null,null,null,"Uitslag","180 ers","Finish"]
["Naam Speler:",null,{"$f":"'Doorschrijf Formulier 32'!F22","v":"15"}]
[]
["Naam Speler:",null,{"$f":"'Doorschrijf Formulier 32'!F23","v":"5"}]
[]
[]
["Schrijver:",null,{"$f":"IF('Doorschrijf Formulier 32'!K4<3,'Doorschrijf Formulier 32'!J4,IF('Doorschrijf Formulier 32'!K5<3,'Doorschrijf Formulier 32'!J5,\"\"))","v":""}]
[]
["2e Hooftronde",null,"501 Best of",5,null,null,"Baan:",{"$f":"'Doorschrijf Formulier 32'!P24","v":"?"}]
[]
[null,null,null,null,null,"Uitslag","180 ers","Finish"]
["Naam Speler:",null,{"$f":"'Doorschrijf Formulier 32'!J4","v":"1"}]
[]
["Naam Speler:",null,{"$f":"'Doorschrijf Formulier 32'!J5","v":"14"}]
[]
[]
["Schrijver:",null,{"$f":"IF('Doorschrijf Formulier 32'!C3<3,'Doorschrijf Formulier 32'!B3,IF('Doorschrijf Formulier 32'!C4<3,'Doorschrijf Formulier 32'!B4,\"\"))","v":0}]
[]
["2e Hooftronde",null,"501 Best of",null,null,null,"Baan:",{"$f":"'Doorschrijf Formulier 32'!P16","v":"?"}]
[]
[null,null,null,null,null,"Uitslag","180 ers","Finish"]
["Naam Speler:",null,{"$f":"'Doorschrijf Formulier 32'!J12","v":"16"}]
[]
["Naam Speler:",null,{"$f":"'Doorschrijf Formulier 32'!J13","v":"9"}]
[]
[]
["Schrijver:",null,{"$f":"IF('Doorschrijf Formulier 32'!C3<3,'Doorschrijf Formulier 32'!B3,IF('Doorschrijf Formulier 32'!C4<3,'Doorschrijf Formulier 32'!B4,\"\"))","v":0}]
[]
["2e Hooftronde",null,"501 Best of",5,null,null,"Baan:",{"$f":"'Doorschrijf Formulier 32'!P31","v":"?"}]
[]
[null,null,null,null,null,"Uitslag","180 ers","Finish"]
["Naam Speler:",null,{"$f":"'Doorschrijf Formulier 32'!J20","v":"13"}]
[]
["Naam Speler:",null,{"$f":"'Doorschrijf Formulier 32'!J21","v":"5"}]
[]
[]
["Schrijver:",null,{"$f":"IF('Doorschrijf Formulier 32'!C3<3,'Doorschrijf Formulier 32'!B3,IF('Doorschrijf Formulier 32'!C4<3,'Doorschrijf Formulier 32'!B4,\"\"))","v":0}]
[]
["2e Hooftronde",null,"501 Best of",null,null,null,"Baan:",{"$f":"'Doorschrijf Formulier 32'!P36","v":0}]
[]
[null,null,null,null,null,"Uitslag","180 ers","Finish"]
["Naam Speler:",null,{"$f":"'Doorschrijf Formulier 32'!J28","v":"6"}]
[]
["Naam Speler:",null,{"$f":"'Doorschrijf Formulier 32'!J29","v":"10"}]
[]
[]
["Schrijver:",null,{"$f":"IF('Doorschrijf Formulier 32'!C23<3,'Doorschrijf Formulier 32'!B23,IF('Doorschrijf Formulier 32'!C24<3,'Doorschrijf Formulier 32'!B24,\"\"))","v":0}]

{"sheet":"Wedstrijdbriefje 2e Hoofdronde","index":4,"n_rows":39,"n_cols":8,"rows_kept":39,"cut":false,"hidden":false,"merged":[]}
["3e Hooftronde",null,"501 Best of",5,null,null,"Baan:",{"$f":"'Doorschrijf Formulier 32'!P8","v":"?"}]
[]
[null,null,null,null,null,"Uitslag","180 ers","Finish"]
["Naam Speler:",null,{"$f":"'Doorschrijf Formulier 32'!N8","v":"14"}]
[]
["Naam Speler:",null,{"$f":"'Doorschrijf Formulier 32'!N9","v":"9"}]
[]
[]
["Schrijver:",null,{"$f":"IF('Doorschrijf Formulier 32'!K4<3,'Doorschrijf Formulier 32'!J4,IF('Doorschrijf Formulier 32'!K5<3,'Doorschrijf Formulier 32'!J5,\"\"))","v":""}]
[]
["3e Hooftronde",null,"501 Best of",5,null,null,"Baan:",{"$f":"'Doorschrijf Formulier 32'!P24","v":"?"}]
[]
[null,null,null,null,null,"Uitslag","180 ers","Finish"]
["Naam Speler:",null,{"$f":"'Doorschrijf Formulier 32'!N24","v":"5"}]
[]
["Naam Speler:",null,{"$f":"'Doorschrijf Formulier 32'!N25","v":"10"}]
[]
[]
["Schrijver:",null,{"$f":"IF('Doorschrijf Formulier 32'!C3<3,'Doorschrijf Formulier 32'!B3,IF('Doorschrijf Formulier 32'!C4<3,'Doorschrijf Formulier 32'!B4,\"\"))","v":0}]
[]
["3 en 4 Hoofdronde",null,"501 Best of",null,null,null,"Baan:",{"$f":"'Doorschrijf Formulier 32'!P16","v":"?"}]
[]
[null,null,null,null,null,"Uitslag","180 ers","Finish"]
["Naam Speler:",null,{"$f":"'Doorschrijf Formulier 32'!N31","v":"9"}]
[]
["Naam Speler:",null,{"$f":"'Doorschrijf Formulier 32'!N32","v":"10"}]
[]
[]
["Schrijver:",null,{"$f":"IF('Doorschrijf Formulier 32'!C3<3,'Doorschrijf Formulier 32'!B3,IF('Doorschrijf Formulier 32'!C4<3,'Doorschrijf Formulier 32'!B4,\"\"))","v":0}]
[]
["Finale Hoofdronde",null,"501 Best of",5,null,null,"Baan:",{"$f":"'Doorschrijf Formulier 32'!P31","v":"?"}]
[]
[null,null,null,null,null,"Uitslag","180 ers","Finish"]
["Naam Speler:",null,{"$f":"'Doorschrijf Formulier 32'!N16","v":"14"}]
[]
["Naam Speler:",null,{"$f":"'Doorschrijf Formulier 32'!N17","v":"5"}]
[]
[]
["Schrijver:",null,{"$f":"IF('Doorschrijf Formulier 32'!C3<3,'Doorschrijf Formulier 32'!B3,IF('Doorschrijf Formulier 32'!C4<3,'Doorschrijf Formulier 32'!B4,\"\"))","v":0}]

{"sheet":"Doorschrijfformulier Verliezers","index":5,"n_rows":32,"n_cols":16,"rows_kept":32,"cut":false,"hidden":false,"merged":[[7,15,8,15],[4,3,5,3],[6,3,7,3],[5,7,6,7],[8,3,9,3],[28,3,29,3],[0,3,1,3],[1,7,2,7],[2,3,3,3],[3,11,4,11],[13,7,14,7],[10,3,11,3],[9,7,10,7],[26,3,27,3],[11,11,12,11],[16,3,17,3],[18,3,19,3],[17,7,18,7],[29,15,29,17],[22,3,23,3],[21,7,22,7],[12,3,13,3],[29,7,30,7],[30,15,30,17],[28,14,28,17],[14,3,15,3],[19,11,20,11],[15,15,16,15],[20,3,21,3],[24,3,25,3],[30,3,31,3],[23,15,24,15],[25,7,26,7],[27,11,28,11]]}
[1,null,null,"?",null,null,null,null,null,"Verliezersronde"]
[2,null,null,null,null,null,null,"?"]
[3,null,null,"?"]
[4,null,null,null,null,null,null,null,null,{"$f":"IF(SUM(--Poules!P6,--Poules!P7)=7,Poules!Q6,\"\")","v":"8"},null,"?"]
[5,null,null,"?",null,null,null,null,null,{"$f":"IF(SUM(--Poules!P82,--Poules!P83)=7,Poules!Q83,\"\")","v":"17"}]
[6,null,null,null,null,null,null,"?"]
[7,null,null,"?"]
[8,null,null,null,null,null,null,null,null,null,null,null,1,{"$f":"IF(SUM(--Poules!P6,--Poules!P7)=7,Poules!Q6,\"\")","v":"8"},20,7]
[9,null,null,"?",null,null,null,null,null,null,null,null,2,{"$f":"IF(SUM(--Poules!P121,--Poules!P122)=9,Poules!Q122,\"\")","v":"4"},11]
[10,null,null,null,null,null,null,"?"]
[11,null,null,"?"]
[12,null,null,null,null,null,null,null,null,{"$f":"IF(SUM(--Poules!P44,--Poules!P45)=7,Poules!Q44,\"\")","v":"2"},null,"?"]
[13,null,null,"?",null,null,null,null,null,{"$f":"IF(SUM(--Poules!P121,--Poules!P122)=9,Poules!Q122,\"\")","v":"4"}]
[14,null,null,null,null,null,null,"?"]
[15,null,null,"?",null,null,null,null,null,null,null,null,null,"Finale Verliezers"]
[16,null,null,null,null,null,null,null,null,null,null,null,null,{"$f":"IF('Doorschrijfformulier Verliezers'!O8>O9,'Doorschrijfformulier Verliezers'!N8,IF('Doorschrijfformulier Verliezers'!O9>O8,'Doorschrijfformulier Verliezers'!N9,\"\"))","v":"8"},15,2]
[17,null,null,"?",null,null,null,null,null,null,null,null,null,{"$f":"IF('Doorschrijfformulier Verliezers'!O24>O25,'Doorschrijfformulier Verliezers'!N24,IF('Doorschrijfformulier Verliezers'!O25>O24,'Doorschrijfformulier Verliezers'!N25,\"\"))","v":"3"},11]
[18,null,null,null,null,null,null,"?"]
[19,null,null,"?"]
[20,null,null,null,null,null,null,null,null,{"$f":"IF(SUM(--Poules!P82,--Poules!P83)=7,Poules!Q82,\"\")","v":"7"},null,"?"]
[21,null,null,"?",null,null,null,null,null,{"$f":"IF(SUM(--Poules!P44,--Poules!P45)=7,Poules!Q45,\"\")","v":"11"}]
[22,null,null,null,null,null,null,"?"]
[23,null,null,"?"]
[24,null,null,null,null,null,null,null,null,null,null,null,3,{"$f":"IF(SUM(--Poules!P121,--Poules!P122)=9,Poules!Q121,\"\")","v":"3"},15,5]
[25,null,null,"?",null,null,null,null,null,null,null,null,4,{"$f":"IF(SUM(--Poules!P6,--Poules!P7)=7,Poules!Q7,\"\")","v":"12"},11]
[26,null,null,null,null,null,null,"?"]
[27,null,null,"?"]
[28,null,null,null,null,null,null,null,null,{"$f":"IF(SUM(--Poules!P121,--Poules!P122)=9,Poules!Q121,\"\")","v":"3"},null,"?"]
[29,null,null,"?",null,null,null,null,null,{"$f":"IF(SUM(--Poules!P6,--Poules!P7)=7,Poules!Q7,\"\")","v":"12"},null,null,null,null,"Uislag Finale Verliezers Ronde"]
[30,null,null,null,null,null,null,"?",null,null,null,null,null,null,1,{"$f":"IF('Doorschrijfformulier Verliezers'!O16>O17,'Doorschrijfformulier Verliezers'!N16,IF('Doorschrijfformulier Verliezers'!O17>O16,'Doorschrijfformulier Verliezers'!N17,\"\"))","v":"8"}]
[31,null,null,"?",null,null,null,null,null,null,null,null,null,null,2,{"$f":"IF('Doorschrijfformulier Verliezers'!O16<O17,'Doorschrijfformulier Verliezers'!N16,IF('Doorschrijfformulier Verliezers'!O17<O16,'Doorschrijfformulier Verliezers'!N17,\"\"))","v":"3"}]
[32]

{"sheet":"Wedstrijdbriefje 1e Verliezersr","index":6,"n_rows":39,"n_cols":8,"rows_kept":39,"cut":false,"hidden":false,"merged":[]}
["1ste Verliezersronde.",null,"501 Best of",3,null,null,"Baan:",{"$f":"'Doorschrijfformulier Verliezers'!P8","v":7}]
[]
[null,null,null,null,null,"Uitslag","180 ers","Finish"]
["Naam Speler:",null,{"$f":"'Doorschrijfformulier Verliezers'!J4","v":"8"}]
[]
["Naam Speler:",null,{"$f":"'Doorschrijfformulier Verliezers'!J5","v":"17"}]
[]
[]
["Schrijver:",null,{"$f":"IF('Doorschrijfformulier Verliezers'!K4<3,'Doorschrijfformulier Verliezers'!J4,IF('Doorschrijfformulier Verliezers'!K5<3,'Doorschrijfformulier Verliezers'!J5,\"\"))","v":"8"}]
[]
["1ste Verliezersronde.",null,"501 Best of",3,null,null,"Baan:",{"$f":"'Doorschrijfformulier Verliezers'!P24","v":5}]
[]
[null,null,null,null,null,"Uitslag","180 ers","Finish"]
["Naam Speler:",null,{"$f":"'Doorschrijfformulier Verliezers'!J12","v":"2"}]
[]
["Naam Speler:",null,{"$f":"'Doorschrijfformulier Verliezers'!J13","v":"4"}]
[]
[]
["Schrijver:",null,{"$f":"IF('Doorschrijfformulier Verliezers'!K20<3,'Doorschrijfformulier Verliezers'!J20,IF('Doorschrijfformulier Verliezers'!K21<3,'Doorschrijfformulier Verliezers'!J21,\"\"))","v":"7"}]
[]
["Finale Verliezers.",null,"501 Best of",3,null,null,"Baan:",{"$f":"'Doorschrijfformulier Verliezers'!P16","v":2}]
[]
[null,null,null,null,null,"Uitslag","180 ers","Finish"]
["Naam Speler:",null,{"$f":"'Doorschrijfformulier Verliezers'!J20","v":"7"}]
[]
["Naam Speler:",null,{"$f":"'Doorschrijfformulier Verliezers'!J21","v":"11"}]
[]
[]
["Schrijver:",null,"Vrijwillige schrijver"]
[]
["Finale Verliezers.",null,"501 Best of",3,null,null,"Baan:",{"$f":"'Doorschrijfformulier Verliezers'!P26","v":0}]
[]
[null,null,null,null,null,"Uitslag","180 ers","Finish"]
["Naam Speler:",null,{"$f":"'Doorschrijfformulier Verliezers'!J28","v":"3"}]
[]
["Naam Speler:",null,{"$f":"'Doorschrijfformulier Verliezers'!J29","v":"12"}]
[]
[]
["Schrijver:",null,"Vrijwillige schrijver"]

{"sheet":"Wedstrijdbriefje 2e Verliezersr","index":7,"n_rows":29,"n_cols":8,"rows_kept":29,"cut":false,"hidden":false,"merged":[]}
["1ste Verliezersronde.",null,"501 Best of",3,null,null,"Baan:",{"$f":"'Doorschrijfformulier Verliezers'!P8","v":7}]
[]
[null,null,null,null,null,"Uitslag","180 ers","Finish"]
["Naam Speler:",null,{"$f":"'Doorschrijfformulier Verliezers'!N8","v":"8"}]
[]
["Naam Speler:",null,{"$f":"'Doorschrijfformulier Verliezers'!N9","v":"4"}]
[]
[]
["Schrijver:",null,{"$f":"IF('Doorschrijfformulier Verliezers'!K4<3,'Doorschrijfformulier Verliezers'!J4,IF('Doorschrijfformulier Verliezers'!K5<3,'Doorschrijfformulier Verliezers'!J5,\"\"))","v":"8"}]
[]
["1ste Verliezersronde.",null,"501 Best of",3,null,null,"Baan:",{"$f":"'Doorschrijfformulier Verliezers'!P24","v":5}]
[]
[null,null,null,null,null,"Uitslag","180 ers","Finish"]
["Naam Speler:",null,{"$f":"'Doorschrijfformulier Verliezers'!N24","v":"3"}]
[]
["Naam Speler:",null,{"$f":"'Doorschrijfformulier Verliezers'!N25","v":"12"}]
[]
[]
["Schrijver:",null,{"$f":"IF('Doorschrijfformulier Verliezers'!K20<3,'Doorschrijfformulier Verliezers'!J20,IF('Doorschrijfformulier Verliezers'!K21<3,'Doorschrijfformulier Verliezers'!J21,\"\"))","v":"7"}]
[]
["Finale Verliezers.",null,"501 Best of",3,null,null,"Baan:",{"$f":"'Doorschrijfformulier Verliezers'!P16","v":2}]
[]
[null,null,null,null,null,"Uitslag","180 ers","Finish"]
["Naam Speler:",null,{"$f":"'Doorschrijfformulier Verliezers'!N16","v":"8"}]
[]
["Naam Speler:",null,{"$f":"'Doorschrijfformulier Verliezers'!N17","v":"3"}]
[]
[]
["Schrijver:",null,"Vrijwillige schrijver"]